fUST/lending_fUST_20251115
["ID","MTS","AMOUNT","RATE_DAILY","PERIOD"]
[394040692,1763212753470,-297.80735726,0.00030876,2]
[394040693,1763212753491,-400.0,0.00030972,2]
[394040694,1763212753512,-500.0,0.00030973,2]
[394040695,1763212753538,-500.0,0.00030973,2]
[394040696,1763212753560,-500.0,0.00030973,2]
[394040697,1763212753585,-500.0,0.00030973,2]
[394040698,1763212753607,-500.0,0.00030973,2]
[394040699,1763212753628,-500.0,0.00030973,2]
[394040700,1763212753649,-500.0,0.00030973,2]
[394040701,1763212753669,-317.16287763,0.00030973,2]
[394040702,1763212753692,-500.0,0.00030973,2]
[394040703,1763212753713,-500.0,0.00030973,2]
[394040704,1763212753734,-500.0,0.00030973,2]
[394040705,1763212753754,-500.0,0.00030973,2]
[394040706,1763212753774,-500.0,0.00030973,2]
[394040707,1763212753795,-500.0,0.00030973,2]
[394040708,1763212753819,-500.0,0.00030973,2]
[394040709,1763212753844,-500.0,0.00030973,2]
[394040710,1763212753865,-304.08009589,0.00030973,2]
[394040711,1763212753887,-518.38801171,0.00030973,2]
[394040712,1763212753911,-500.0,0.00030973,2]
[394040713,1763212753938,-500.0,0.00030973,2]
[394040714,1763212753959,-500.0,0.00030973,2]
[394040715,1763212753980,-400.0,0.00030973,2]
[394040716,1763212754003,-500.0,0.00030973,2]
[394040717,1763212754039,-500.0,0.00030973,2]
[394040718,1763212754064,-500.0,0.00030973,2]
[394040719,1763212754091,-500.0,0.00030973,2]
[394040720,1763212754113,-500.0,0.00030973,2]
[394040721,1763212754136,-500.0,0.00030973,2]
[394040722,1763212754167,-500.0,0.00030973,2]
[394040723,1763212754191,-500.0,0.00030973,2]
[394040724,1763212754213,-500.0,0.00030973,2]
[394040725,1763212754240,-500.0,0.00030973,2]
[394040726,1763212754262,-500.0,0.00030973,2]
[394040727,1763212754285,-500.0,0.00030973,2]
[394040728,1763212754306,-500.0,0.00030973,2]
[394040729,1763212754331,-500.0,0.00030973,2]
[394040730,1763212754352,-500.0,0.00030973,2]
[394040731,1763212754373,-500.0,0.00030973,2]
[394040732,1763212754395,-500.0,0.00030973,2]
[394040733,1763212754420,-500.0,0.00030973,2]
[394040734,1763212754445,-500.0,0.00030973,2]
[394040735,1763212754469,-500.0,0.00030973,2]
[394040736,1763212754491,-500.0,0.00030973,2]
[394040737,1763212754514,-500.0,0.00030973,2]
[394040738,1763212754537,-500.0,0.00030973,2]
[394040739,1763212754558,-500.0,0.00030973,2]
[394040740,1763212754581,-500.0,0.00030973,2]
[394040741,1763212754603,-500.0,0.00030973,2]
[394040742,1763212754625,-500.0,0.00030973,2]
[394040743,1763212754650,-500.0,0.00030973,2]
[394040744,1763212754672,-500.0,0.00030973,2]
[394040745,1763212754694,-500.0,0.00030973,2]
[394040746,1763212754715,-500.0,0.00030973,2]
[394040747,1763212754737,-500.0,0.00030973,2]
[394040748,1763212754759,-500.0,0.00030973,2]
[394040749,1763212754782,-500.0,0.00030973,2]
[394040750,1763212754803,-500.0,0.00030973,2]
[394040751,1763212754825,-500.0,0.00030973,2]
[394040752,1763212754847,-500.0,0.00030973,2]
[394040753,1763212754869,-500.0,0.00030973,2]
[394040754,1763212754892,-500.0,0.00030973,2]
[394040755,1763212754914,-500.0,0.00030973,2]
[394040756,1763212754935,-500.0,0.00030973,2]
[394040757,1763212754956,-500.0,0.00030973,2]
[394040758,1763212754977,-500.0,0.00030973,2]
[394040759,1763212754998,-500.0,0.00030973,2]
[394040760,1763212755020,-500.0,0.00030973,2]
[394040761,1763212755041,-500.0,0.00030973,2]
[394040762,1763212755209,-500.0,0.00030973,2]
[394040763,1763212755231,-500.0,0.00030973,2]
[394040764,1763212755252,-500.0,0.00030973,2]
[394040765,1763212755272,-500.0,0.00030973,2]
[394040766,1763212755293,-500.0,0.00030973,2]
[394040767,1763212755314,-500.0,0.00030973,2]
[394040768,1763212755336,-500.0,0.00030973,2]
[394040769,1763212755357,-500.0,0.00030973,2]
[394040770,1763212755378,-500.0,0.00030973,2]
[394040771,1763212755399,-435.24862417,0.00030973,2]
[394040772,1763212755420,-6699.77846883,0.00030974,2]
[394040782,1763212979915,150.0,0.00019985,2]
[394040784,1763212982478,153.03,5e-05,2]
[394040786,1763213042965,158.88,5e-05,2]
[394040788,1763213102716,155.96,5e-05,2]
[394040790,1763213140126,-239.35836122,0.00025355,2]
[394040791,1763213140148,-53.0152728,0.0002589,2]
[394040792,1763213162239,154.49,5e-05,2]
[394040793,1763213162627,154.49,0.00012,2]
[394040797,1763213237123,-684.0,0.00025204,20]
[394040798,1763213237143,-150.0,0.00025547,2]
[394040799,1763213237166,-177.0,0.00027547,2]
[394040800,1763213237187,-204.0,0.00029547,2]
[394040801,1763213237206,-46.59490227,0.00030973,27]
[394040803,1763213306097,698.41031912,0.00021,10]
[394040807,1763213342329,161.35,5e-05,2]
[394040808,1763213342575,161.35,0.00012,2]
[394040812,1763213353076,-4488.84404236,0.00021,5]
[394040813,1763213401826,161.35,5e-05,2]
[394040814,1763213402196,161.35,0.00012,2]
[394040849,1763213432197,-335.87326848,0.00025,2]
[394040852,1763213432260,-11.54643749,0.00025,2]
[394040853,1763213432270,-300.0,0.00028498,2]
[394040854,1763213432279,-190.99287541,0.00028499,2]
[394040855,1763213432290,-17.23458123,0.00028499,2]
[394040856,1763213432301,-417.16503418,0.00028499,2]
[394040857,1763213432312,-65.60038459,0.00028499,2]
[394040858,1763213432321,-368.57365307,0.00028499,2]
[394040859,1763213432330,-241.88582066,0.00028499,2]
[394040860,1763213432340,-9.33715568,0.00028499,2]
[394040861,1763213432350,-490.66284432,0.00028499,2]
[394040862,1763213432359,-410.69357805,0.00028499,2]
[394040863,1763213432396,-89.30642195,0.00028499,2]
[394040864,1763213432405,-500.0,0.00028499,2]
[394040865,1763213432414,-200.16015885,0.00028499,2]
[394040879,1763213438159,-299.83984115,0.00028499,2]
[394040881,1763213438169,-424.3587466,0.00028499,2]
[394040882,1763213438218,-75.6412534,0.00028499,2]
[394040883,1763213438227,-500.0,0.00028499,2]
[394040884,1763213438236,-29685.92661183,0.000285,7]
[394040915,1763213446635,-22650.0007,0.000285,7]
[394040922,1763213447683,-51660.25719117,0.000285,7]
[394040923,1763213447694,-533.2722871,0.00029467,5]
[394040924,1763213447703,-366.86954721,0.00030561,2]
[394040925,1763213447713,-450.94714616,0.00030662,2]
[394040926,1763213447723,-420.0,0.00030762,2]
[394040927,1763213447736,-107.71809773,0.00030973,27]
[394040928,1763213447745,-168.0,0.00030975,2]
[394040929,1763213447754,-168.0,0.00031218,2]
[394040930,1763213447763,-502.06072498,0.00031373,5]
[394040931,1763213447774,-229.78066075,0.00031373,5]
[394040932,1763213447783,-33669.80673575,0.00031397,2]
[394040933,1763213447792,-500.0,0.00031399,2]
[394040934,1763213447804,-389.95154929,0.000314,20]
[394040935,1763213447813,-231.0,0.00031547,2]
[394040936,1763213447823,-168.0,0.00031574,2]
[394040937,1763213447832,-450.94714615,0.00031876,2]
[394040938,1763213447843,-168.0,0.00032107,2]
[394040939,1763213447853,-366.86954721,0.00032231,2]
[394040940,1763213447866,-168.0,0.00032383,2]
[394040941,1763213447876,-450.94714615,0.0003309,2]
[394040942,1763213447885,-587.0,0.00033206,2]
[394040943,1763213447894,-500.0,0.00033241,2]
[394040944,1763213447903,-258.0,0.00033547,120]
[394040945,1763213447912,-366.86954721,0.00033901,2]
[394040946,1763213447921,-450.94714615,0.00034304,2]
[394040947,1763213447931,-271.56829765,0.0003499,2]
[394040948,1763213447940,-500.0,0.00034999,2]
[394040949,1763213447949,-169.0,0.00035,60]
[394040950,1763213447958,-80611.79,0.00035,2]
[394040951,1763213447967,-5204.27,0.00035,14]
[394040952,1763213447976,-220.34,0.00035,30]
[394040953,1763213447984,-450.94714615,0.00035517,2]
[394040954,1763213447993,-1964.05512592,0.00035525,2]
[394040955,1763213448003,-366.86954721,0.00035571,2]
[394040956,1763213448013,-1964.05512593,0.00035743,2]
[394040957,1763213448022,-442.0,0.00035844,2]
[394040958,1763213448031,-500.0,0.00036095,2]
[394040959,1763213448040,-202.64,0.00036149,2]
[394040960,1763213448049,-500.0,0.00036149,2]
[394040961,1763213448058,-500.0,0.00036149,2]
[394040962,1763213448067,-500.0,0.00036149,2]
[394040963,1763213448076,-500.0,0.00036149,2]
[394040964,1763213448085,-500.0,0.00036149,2]
[394040965,1763213448094,-500.0,0.00036149,2]
[394040966,1763213448103,-500.0,0.00036149,2]
[394040967,1763213448112,-500.0,0.00036149,2]
[394040968,1763213448121,-500.0,0.00036149,2]
[394040969,1763213448130,-500.0,0.00036149,2]
[394040970,1763213448140,-500.0,0.00036149,2]
[394040971,1763213448150,-500.0,0.00036149,2]
[394040972,1763213448159,-500.0,0.00036149,2]
[394040973,1763213448168,-500.0,0.00036149,2]
[394040974,1763213448177,-500.0,0.00036149,2]
[394040975,1763213448187,-500.0,0.00036149,2]
[394040976,1763213448196,-500.0,0.00036149,2]
[394040977,1763213448206,-500.0,0.00036149,2]
[394040978,1763213448215,-500.0,0.00036149,2]
[394040979,1763213448225,-603.84,0.00036149,2]
[394040980,1763213448234,-239.35836122,0.00036481,2]
[394040981,1763213448243,-450.94714615,0.00036731,2]
[394040982,1763213448252,-151.0,0.000368,14]
[394040983,1763213448261,-160.0,0.00036869,2]
[394040984,1763213448270,-151.0,0.000369,18]
[394040985,1763213448279,-150.0,0.00036981,2]
[394040986,1763213448287,-151.0,0.00037,13]
[394040987,1763213448296,-271.56829765,0.00037134,3]
[394040988,1763213448305,-309.7677312,0.00037144,2]
[394040989,1763213448314,-500.0,0.00037191,2]
[394040990,1763213448323,-367.23641676,0.00037241,2]
[394040991,1763213448331,-629.0,0.00037275,2]
[394040992,1763213448340,-2206.0,0.00037275,2]
[394040993,1763213448349,-988.0,0.00037275,2]
[394040994,1763213448358,-413.0,0.00037275,2]
[394040995,1763213448368,-164.2628813,0.00037415,30]
[394040996,1763213448376,-382.4236393,0.00037415,30]
[394040997,1763213448385,-150.0,0.00037648,2]
[394040998,1763213448394,-450.94714615,0.00037945,2]
[394040999,1763213448403,-271.56829765,0.0003799,3]
[394041000,1763213448412,-34230.87398526,0.00038,2]
[394041001,1763213448448,-5632.30871274,0.00038,2]
[394041034,1763213679742,-1176.682574,0.00024953,10]
[394041035,1763213679767,-205.57360598,0.00025079,2]
[394041036,1763213679792,-4154.994954,0.0002839,2]
[394041037,1763213679822,-300.0,0.00028398,2]
[394041038,1763213679847,-500.0,0.00028398,2]
[394041039,1763213679873,-500.0,0.00028398,2]
[394041040,1763213679903,-500.0,0.00028398,2]
[394041041,1763213679929,-500.0,0.00028398,2]
[394041042,1763213679953,-505.4381957,0.00028398,2]
[394041043,1763213679979,-603.61779246,0.00028398,2]
[394041044,1763213680005,-500.0,0.00028398,2]
[394041045,1763213680031,-500.0,0.00028398,2]
[394041046,1763213680059,-500.0,0.00028398,2]
[394041047,1763213680084,-500.0,0.00028398,2]
[394041048,1763213680106,-500.0,0.00028398,2]
[394041049,1763213680131,-500.0,0.00028398,2]
[394041050,1763213680155,-500.0,0.00028398,2]
[394041051,1763213680183,-500.0,0.00028398,2]
[394041052,1763213680207,-238.30560988,0.00028398,2]
[394041053,1763213680233,-500.0,0.00028398,2]
[394041054,1763213680256,-377.87326256,0.00028398,2]
[394041055,1763213680280,-500.0,0.00028398,2]
[394041056,1763213680304,-271.66247101,0.00028398,2]
[394041057,1763213680328,-500.0,0.00028398,2]
[394041058,1763213680352,-500.0,0.00028398,2]
[394041059,1763213680377,-500.0,0.00028398,2]
[394041060,1763213680400,-500.0,0.00028398,2]
[394041061,1763213680424,-156.52246414,0.00028398,2]
[394041062,1763213680448,-500.0,0.00028398,2]
[394041063,1763213680472,-500.0,0.00028398,2]
[394041064,1763213680497,-500.0,0.00028398,2]
[394041065,1763213680521,-500.0,0.00028398,2]
[394041066,1763213680546,-466.78750297,0.00028398,2]
[394041067,1763213680571,-500.0,0.00028398,2]
[394041068,1763213680595,-500.0,0.00028398,2]
[394041069,1763213680618,-194.21544031,0.00028399,2]
[394041070,1763213680644,-879348.32612699,0.000284,2]
[394041083,1763214037128,-740.0,0.00024703,10]
[394041114,1763214332150,-468.84772528,0.00024456,10]
[394041120,1763214424195,10000.01,0.0002,2]
[394041121,1763214424216,10000.01,0.0002,2]
[394041122,1763214424236,10000.01,0.0002,2]
[394041123,1763214424256,10000.01,0.0002,2]
[394041124,1763214424277,0.01,0.0002,2]
[394041125,1763214453120,-1025.35932176,0.00024093,10]
[394041126,1763214453142,-190.63778724,0.00024336,10]
[394041127,1763214453165,-1434.41757712,0.00024582,10]
[394041130,1763214482261,244.1,5e-05,2]
[394041131,1763214482566,244.1,5.1e-05,2]
[394041133,1763214482812,244.1,5.3e-05,2]
[394041135,1763214483743,244.1,5.4e-05,2]
[394041136,1763214484294,244.1,5.6e-05,2]
[394041137,1763214484576,244.1,5.7e-05,2]
[394041138,1763214484916,244.1,5.9e-05,2]
[394041139,1763214485302,244.1,6e-05,2]
[394041140,1763214485611,244.1,6.1e-05,2]
[394041141,1763214485914,244.1,6.3e-05,2]
[394041142,1763214486203,244.1,6.4e-05,2]
[394041143,1763214486597,244.1,6.6e-05,2]
[394041144,1763214487112,244.1,6.7e-05,2]
[394041145,1763214487538,244.1,6.9e-05,2]
[394041146,1763214488559,244.1,7e-05,2]
[394041147,1763214489028,244.1,7.1e-05,2]
[394041148,1763214489342,244.1,7.3e-05,2]
[394041149,1763214489690,244.1,7.4e-05,2]
[394041150,1763214490002,244.1,7.6e-05,2]
[394041151,1763214490540,244.1,7.7e-05,2]
[394041152,1763214490840,244.1,7.9e-05,2]
[394041153,1763214491133,244.1,8e-05,2]
[394041154,1763214491460,244.1,8.1e-05,2]
[394041155,1763214491888,244.1,8.3e-05,2]
[394041156,1763214492894,244.1,8.4e-05,2]
[394041157,1763214493194,244.1,8.6e-05,2]
[394041158,1763214493667,244.1,8.7e-05,2]
[394041159,1763214493979,244.1,8.9e-05,2]
[394041160,1763214494321,244.1,9e-05,2]
[394041161,1763214494614,244.1,9.1e-05,2]
[394041162,1763214494929,244.1,9.3e-05,2]
[394041163,1763214495236,244.1,9.4e-05,2]
[394041164,1763214495522,244.1,9.6e-05,2]
[394041165,1763214495852,244.1,9.7e-05,2]
[394041166,1763214496238,244.1,9.9e-05,2]
[394041167,1763214496526,244.1,0.0001,2]
[394041168,1763214496816,244.1,0.000101,2]
[394041169,1763214497208,244.1,0.000103,2]
[394041170,1763214497618,244.1,0.000104,2]
[394041171,1763214498585,244.1,0.000106,2]
[394041172,1763214498922,236.01,0.000107,2]
[394041173,1763214498946,8.09,0.000107,2]
[394041174,1763214499260,244.1,0.000109,2]
[394041175,1763214499543,244.1,0.00011,2]
[394041176,1763214499872,244.1,0.000111,2]
[394041177,1763214500206,244.1,0.000113,2]
[394041178,1763214500500,244.1,0.000114,2]
[394041179,1763214500790,244.1,0.000116,2]
[394041180,1763214501121,244.1,0.000117,2]
[394041181,1763214501451,244.1,0.000119,2]
[394041182,1763214501786,244.1,0.00012,2]
[394041193,1763214542504,166.12,5e-05,2]
[394041194,1763214542918,166.12,6.2e-05,2]
[394041195,1763214543259,166.12,7.3e-05,2]
[394041196,1763214543594,166.12,8.5e-05,2]
[394041197,1763214543890,166.12,9.7e-05,2]
[394041198,1763214544268,166.12,0.000108,2]
[394041199,1763214562082,-4724.54816685,0.00024459,2]
[394041242,1763214632442,-275.45183315,0.00024459,2]
[394041243,1763214632452,-150.0,0.00024706,2]
[394041244,1763214632461,-196.38244643,0.00026103,2]
[394041245,1763214632471,-180.0,0.00029507,14]
[394041246,1763214632480,-421.34932773,0.00031396,20]
[394041247,1763214632493,-78.65067227,0.00031396,20]
[394041248,1763214632502,-421.34932773,0.00031396,20]
[394041312,1763214638299,-78.65067227,0.00031396,20]
[394041313,1763214638309,-500.0,0.00034999,20]
[394041314,1763214638318,-285.884835,0.00036557,2]
[394041315,1763214638328,-76.34449313,0.00036594,30]
[394041316,1763214638339,-252.14215597,0.00036594,30]
[394041317,1763214638349,-240.07643631,0.00036855,2]
[394041318,1763214638359,-196.38244643,0.00036855,2]
[394041319,1763214638368,-300.0,0.00036899,2]
[394041320,1763214638491,-241.0,0.00036899,3]
[394041321,1763214638502,-334.99917153,0.000369,7]
[394041322,1763214638513,-248.71070247,0.000369,7]
[394041323,1763214638523,-318.29562373,0.00037,2]
[394041324,1763214638535,-20847.63948007,0.00037,2]
[394041325,1763214638546,-1442.73549134,0.00037,2]
[394041326,1763214638557,-928.98345371,0.00037,2]
[394041327,1763214638568,-1703.45085993,0.00037,2]
[394041328,1763214638579,-435.0,0.00037,2]
[394041329,1763214638678,-1457.12384977,0.00037,2]
[394041330,1763214638694,-1813.7756934,0.00037,2]
[394041331,1763214638705,-42870.68711529,0.00037,2]
[394041332,1763214638716,-315.47340738,0.00037,2]
[394041333,1763214638727,-1197.45495219,0.00037,2]
[394041342,1763214640549,-690.42,0.0003699,3]
[394041343,1763214640559,-439.31,0.0003699,10]
[394041344,1763214640568,-310.27,0.00037,2]
[394041345,1763214640579,-71661.6689515,0.00037,2]
[394041346,1763214640590,-528.89051107,0.00037,2]
[394041350,1763214645772,-206.43698277,0.00024356,2]
[394041351,1763214645788,-3643.56301725,0.00037,2]
[394041361,1763214666881,443.812283,0.00013699,2]
[394041374,1763214843184,5000.0,0.00020186,2]
[394041390,1763214866183,3315.377717,0.00020186,2]
[394041391,1763214866208,1684.622283,0.00020186,2]
[394041392,1763214889596,3625.7570064,0.00020186,2]
[394041398,1763215154070,5000.0,0.00032877,120]
[394041399,1763215175717,4689.6307106,0.00020186,2]
[394041400,1763215175739,2736.3692894,0.00020186,2]
[394041544,1763215542185,5000.0,0.00020186,2]
[394041545,1763215551107,2263.6407106,0.00020186,2]
[394041546,1763215551131,2736.3592894,0.00020186,2]
[394041547,1763215562383,150.1,5e-05,2]
[394041548,1763215562668,150.1,5.2e-05,2]
[394041549,1763215563795,150.1,5.4e-05,2]
[394041550,1763215564178,150.1,5.6e-05,2]
[394041551,1763215564532,150.1,5.8e-05,2]
[394041552,1763215565051,150.1,6e-05,2]
[394041553,1763215565390,150.1,6.2e-05,2]
[394041554,1763215565727,150.1,6.4e-05,2]
[394041555,1763215566019,150.1,6.6e-05,2]
[394041556,1763215566327,150.1,6.8e-05,2]
[394041557,1763215566649,150.1,6.9e-05,2]
[394041558,1763215566937,150.1,7.1e-05,2]
[394041559,1763215567235,150.1,7.3e-05,2]
[394041560,1763215567521,150.1,7.5e-05,2]
[394041561,1763215568526,150.1,7.7e-05,2]
[394041563,1763215568866,150.1,7.9e-05,2]
[394041564,1763215569188,150.1,8.1e-05,2]
[394041565,1763215569610,150.1,8.3e-05,2]
[394041566,1763215569968,150.1,8.5e-05,2]
[394041567,1763215570494,150.1,8.7e-05,2]
[394041568,1763215570886,150.1,8.9e-05,2]
[394041569,1763215571190,150.1,9.1e-05,2]
[394041570,1763215571542,150.1,9.3e-05,2]
[394041571,1763215571864,150.1,9.5e-05,2]
[394041572,1763215572222,150.1,9.7e-05,2]
[394041573,1763215572542,150.1,9.9e-05,2]
[394041574,1763215572969,150.1,0.000101,2]
[394041575,1763215573248,150.1,0.000103,2]
[394041576,1763215573617,150.1,0.000104,2]
[394041577,1763215574009,150.1,0.000106,2]
[394041578,1763215574229,150.1,0.000108,2]
[394041579,1763215574597,150.1,0.00011,2]
[394041580,1763215574993,150.1,0.000112,2]
[394041581,1763215575287,150.1,0.000114,2]
[394041582,1763215575591,150.1,0.000116,2]
[394041583,1763215575888,150.1,0.000118,2]
[394041584,1763215576442,150.1,0.00012,2]
[394041585,1763215622311,151.02,5e-05,2]
[394041586,1763215622606,151.02,5.2e-05,2]
[394041587,1763215622907,151.02,5.4e-05,2]
[394041588,1763215623195,151.02,5.6e-05,2]
[394041589,1763215623524,151.02,5.8e-05,2]
[394041590,1763215623905,151.02,5.9e-05,2]
[394041591,1763215624242,151.02,6.1e-05,2]
[394041592,1763215624967,151.02,6.3e-05,2]
[394041593,1763215625311,151.02,6.5e-05,2]
[394041594,1763215625639,151.02,6.7e-05,2]
[394041595,1763215625961,151.02,6.9e-05,2]
[394041596,1763215626314,151.02,7.1e-05,2]
[394041597,1763215626642,151.02,7.3e-05,2]
[394041598,1763215626922,151.02,7.5e-05,2]
[394041599,1763215627222,151.02,7.6e-05,2]
[394041600,1763215627581,151.02,7.8e-05,2]
[394041601,1763215627963,151.02,8e-05,2]
[394041602,1763215628304,151.02,8.2e-05,2]
[394041603,1763215628735,151.02,8.4e-05,2]
[394041604,1763215629014,151.02,8.6e-05,2]
[394041605,1763215629304,151.02,8.8e-05,2]
[394041606,1763215629630,151.02,9e-05,2]
[394041607,1763215629937,151.02,9.2e-05,2]
[394041608,1763215630218,151.02,9.4e-05,2]
[394041609,1763215630502,151.02,9.5e-05,2]
[394041610,1763215630878,151.02,9.7e-05,2]
[394041611,1763215631168,151.02,9.9e-05,2]
[394041612,1763215631483,151.02,0.000101,2]
[394041613,1763215631785,151.02,0.000103,2]
[394041614,1763215632124,151.02,0.000105,2]
[394041615,1763215632436,151.02,0.000107,2]
[394041616,1763215632815,151.02,0.000109,2]
[394041617,1763215633306,151.02,0.000111,2]
[394041618,1763215633771,151.02,0.000112,2]
[394041619,1763215634108,151.02,0.000114,2]
[394041620,1763215634830,151.02,0.000116,2]
[394041621,1763215635266,151.02,0.000118,2]
[394041622,1763215635614,151.02,0.00012,2]
[394041623,1763215680720,208.55,0.00017483,9]
[394041624,1763215680743,35.35,0.00017483,9]
[394041625,1763215682056,151.02,5e-05,2]
[394041626,1763215682390,151.02,5.2e-05,2]
[394041627,1763215682728,151.02,5.4e-05,2]
[394041628,1763215683080,151.02,5.6e-05,2]
[394041629,1763215683384,151.02,5.8e-05,2]
[394041630,1763215683731,151.02,5.9e-05,2]
[394041631,1763215684071,151.02,6.1e-05,2]
[394041632,1763215684411,151.02,6.3e-05,2]
[394041633,1763215684787,151.02,6.5e-05,2]
[394041634,1763215685153,151.02,6.7e-05,2]
[394041635,1763215685497,151.02,6.9e-05,2]
[394041636,1763215685846,151.02,7.1e-05,2]
[394041637,1763215686173,151.02,7.3e-05,2]
[394041638,1763215686870,151.02,7.5e-05,2]
[394041639,1763215687198,151.02,7.6e-05,2]
[394041640,1763215687538,151.02,7.8e-05,2]
[394041641,1763215687850,151.02,8e-05,2]
[394041642,1763215688167,151.02,8.2e-05,2]
[394041643,1763215688507,151.02,8.4e-05,2]
[394041644,1763215689057,151.02,8.6e-05,2]
[394041645,1763215689376,151.02,8.8e-05,2]
[394041646,1763215689742,151.02,9e-05,2]
[394041647,1763215690074,151.02,9.2e-05,2]
[394041648,1763215690502,151.02,9.4e-05,2]
[394041649,1763215690856,151.02,9.5e-05,2]
[394041650,1763215691226,151.02,9.7e-05,2]
[394041651,1763215691491,151.02,9.9e-05,2]
[394041652,1763215691804,151.02,0.000101,2]
[394041653,1763215692144,151.02,0.000103,2]
[394041654,1763215692459,151.02,0.000105,2]
[394041655,1763215692770,151.02,0.000107,2]
[394041656,1763215693136,151.02,0.000109,2]
[394041657,1763215693556,151.02,0.000111,2]
[394041658,1763215694172,151.02,0.000112,2]
[394041659,1763215694616,151.02,0.000114,2]
[394041660,1763215694963,151.02,0.000116,2]
[394041661,1763215695263,151.02,0.000118,2]
[394041662,1763215695748,151.02,0.00012,2]
[394041665,1763215741760,152.34,5e-05,2]
[394041666,1763215742055,152.34,5.2e-05,2]
[394041667,1763215743120,152.34,5.4e-05,2]
[394041668,1763215743448,152.34,5.6e-05,2]
[394041669,1763215743719,152.34,5.8e-05,2]
[394041670,1763215744006,152.34,5.9e-05,2]
[394041671,1763215744307,152.34,6.1e-05,2]
[394041672,1763215744632,152.34,6.3e-05,2]
[394041673,1763215744920,152.34,6.5e-05,2]
[394041674,1763215745204,152.34,6.7e-05,2]
[394041675,1763215745563,152.34,6.9e-05,2]
[394041676,1763215745911,152.34,7.1e-05,2]
[394041677,1763215746194,152.34,7.3e-05,2]
[394041678,1763215746539,152.34,7.5e-05,2]
[394041679,1763215746866,152.34,7.6e-05,2]
[394041680,1763215747200,152.34,7.8e-05,2]
[394041681,1763215747491,152.34,8e-05,2]
[394041682,1763215747780,152.34,8.2e-05,2]
[394041683,1763215748137,152.34,8.4e-05,2]
[394041684,1763215748440,152.34,8.6e-05,2]
[394041685,1763215748729,152.34,8.8e-05,2]
[394041686,1763215749007,152.34,9e-05,2]
[394041687,1763215749301,152.34,9.2e-05,2]
[394041688,1763215749598,152.34,9.4e-05,2]
[394041689,1763215749883,152.34,9.5e-05,2]
[394041690,1763215750155,152.34,9.7e-05,2]
[394041691,1763215750490,152.34,9.9e-05,2]
[394041692,1763215750767,112.72,0.000101,2]
[394041693,1763215750791,39.62,0.000101,2]
[394041694,1763215751040,152.34,0.000103,2]
[394041695,1763215751400,152.34,0.000105,2]
[394041696,1763215751719,152.34,0.000107,2]